fUSD/lending_fUSD_20240712
["ID","MTS","AMOUNT","RATE_DAILY","PERIOD"]
[331818878,1720770671043,-500.0,0.00014027,2]
[331818879,1720770671053,-500.0,0.00014027,2]
[331818880,1720770671063,-311.6069489,0.00014027,2]
[331818881,1720770671073,-500.0,0.00014027,2]
[331818882,1720770671083,-500.0,0.00014027,2]
[331818883,1720770671093,-500.0,0.00014027,2]
[331818884,1720770671103,-500.0,0.00014027,2]
[331818885,1720770671113,-537.93,0.00014027,2]
[331818886,1720770671123,-500.0,0.00014027,2]
[331818887,1720770671132,-500.0,0.00014027,2]
[331818888,1720770671143,-531.17,0.00014027,2]
[331818889,1720770671152,-530.08,0.00014027,2]
[331818890,1720770671162,-500.0,0.00014031,2]
[331818891,1720770671171,-32384.6154992,0.00014032,2]
[331818892,1720770671186,-3539.2186,0.00014032,2]
[331818893,1720770671198,-311.65,0.00014032,2]
[331818894,1720770672121,-176.49176034,0.00013598,2]
[331818895,1720770672132,-500.0,0.00013698,2]
[331818896,1720770672142,-500.0,0.00013698,2]
[331818897,1720770672152,-500.0,0.00013698,2]
[331818898,1720770672162,-500.0,0.00013698,2]
[331818899,1720770672172,-500.0,0.00013698,2]
[331818900,1720770672182,-500.01,0.00013753,2]
[331818901,1720770672192,-321.57,0.00013753,2]
[331818902,1720770672202,-500.0,0.00013753,2]
[331818903,1720770672212,-11736.13018771,0.00014032,2]
[331818904,1720770672229,-5967.57370409,0.00014032,2]
[331818905,1720770672392,-1407.0,0.00014032,2]
[331818906,1720770673752,-525.88944331,0.00014032,2]
[331818907,1720770673775,-644.21,0.00013808,2]
[331818908,1720770673785,-4059.790003,0.00014032,2]
[331818909,1720770673797,-55900.70956674,0.00014032,2]
[331818910,1720770673807,-151.0,0.00014032,2]
[331818911,1720770673816,-492.390385,0.00014055,2]
[331818912,1720770673826,-750.359636,0.00014055,2]
[331818913,1720770673835,-726.302308,0.00014055,2]
[331818914,1720770673845,-500.0,0.00014081,2]
[331818915,1720770673856,-500.0,0.00014082,2]
[331818916,1720770673866,-500.0,0.00014082,2]
[331818917,1720770673876,-164.69969916,0.00014082,2]
[331818918,1720770673886,-507.51,0.00014082,2]
[331818919,1720770673896,-500.0,0.00014082,2]
[331818920,1720770673906,-500.0,0.00014082,2]
[331818921,1720770673917,-173.86,0.00014082,2]
[331818922,1720770673926,-500.0,0.00014082,2]
[331818923,1720770673936,-375.22,0.00014082,2]
[331818924,1720770673946,-500.0,0.00014082,2]
[331818925,1720770673956,-500.0,0.00014082,2]
[331818926,1720770673966,-500.0,0.00014082,2]
[331818927,1720770673975,-641.97,0.00014082,2]
[331818928,1720770673986,-500.0,0.00014082,2]
[331818929,1720770673995,-500.0,0.00014082,2]
[331818930,1720770674006,-446.08,0.00014082,2]
[331818931,1720770674015,-500.0,0.00014082,2]
[331818932,1720770674025,-500.0,0.00014082,2]
[331818933,1720770674035,-395.08,0.00014082,2]
[331818934,1720770674045,-500.0,0.00014082,2]
[331818935,1720770674055,-680.79,0.00014082,2]
[331818936,1720770674065,-500.0,0.00014082,2]
[331818937,1720770674075,-542.53485199,0.00014082,2]
[331818938,1720770674085,-500.0,0.00014082,2]
[331818939,1720770674094,-624.39,0.00014082,2]
[331818940,1720770674104,-452.45801381,0.00014082,2]
[331818941,1720770674114,-500.0,0.00014082,2]
[331818942,1720770674123,-500.0,0.00014082,2]
[331818943,1720770674133,-500.0,0.00014082,2]
[331818944,1720770674143,-527.54503892,0.00014082,2]
[331818945,1720770674152,-500.0,0.00014082,2]
[331818946,1720770674161,-237.78642357,0.00014082,2]
[331818947,1720770674171,-159.25,0.00014082,2]
[331818948,1720770674181,-725.57,0.00014082,2]
[331818949,1720770674191,-705.63,0.00014082,2]
[331818950,1720770674201,-500.0,0.00014082,2]
[331818951,1720770674211,-500.0,0.00014082,2]
[331818952,1720770674220,-552.82,0.00014082,2]
[331818953,1720770674230,-500.0,0.00014082,2]
[331818954,1720770674240,-500.0,0.00014082,2]
[331818955,1720770674289,-500.0,0.00014082,2]
[331818956,1720770674299,-500.0,0.00014082,2]
[331818957,1720770674309,-500.0,0.00014082,2]
[331818958,1720770674319,-585.17,0.00014082,2]
[331818959,1720770674328,-500.0,0.00014082,2]
[331818960,1720770674337,-500.0,0.00014082,2]
[331818961,1720770674347,-500.0,0.00014082,2]
[331818962,1720770674357,-500.0,0.00014082,2]
[331818963,1720770674367,-500.0,0.00014082,2]
[331818964,1720770674376,-556.86,0.00014082,2]
[331818965,1720770674385,-500.0,0.00014082,2]
[331818966,1720770674395,-538.94,0.00014082,2]
[331818967,1720770674405,-500.0,0.00014082,2]
[331818968,1720770674414,-500.0,0.00014082,2]
[331818969,1720770674423,-500.0,0.00014082,2]
[331818970,1720770674432,-500.0,0.00014082,2]
[331818971,1720770674442,-865.7,0.00014082,2]
[331818972,1720770674451,-416.84,0.00014082,2]
[331818973,1720770674460,-500.0,0.00014082,2]
[331818974,1720770674470,-500.0,0.00014082,2]
[331818975,1720770674479,-500.0,0.00014082,2]
[331818976,1720770674488,-500.0,0.00014082,2]
[331818977,1720770674497,-500.0,0.00014082,2]
[331818978,1720770674508,-665.27,0.00014082,2]
[331818979,1720770674518,-500.0,0.00014082,2]
[331818980,1720770674527,-500.0,0.00014082,2]
[331818981,1720770674536,-539.93,0.00014082,2]
[331818982,1720770674545,-500.0,0.00014082,2]
[331818983,1720770674555,-500.0,0.00014082,2]
[331818984,1720770674564,-500.0,0.00014082,2]
[331818985,1720770674573,-659.81,0.00014082,2]
[331818986,1720770674583,-500.0,0.00014082,2]
[331818987,1720770674593,-500.0,0.00014082,2]
[331818988,1720770674606,-1805.19,0.00014082,2]
[331818989,1720770674615,-500.0,0.00014082,2]
[331818990,1720770674624,-500.0,0.00014082,2]
[331818991,1720770674633,-500.0,0.00014082,2]
[331818992,1720770674642,-500.0,0.00014082,2]
[331818993,1720770674652,-500.0,0.00014082,2]
[331818994,1720770674661,-489.48411172,0.00014082,2]
[331818995,1720770674670,-500.0,0.00014082,2]
[331818996,1720770674681,-511.46,0.00014082,2]
[331818997,1720770674691,-500.0,0.00014082,2]
[331818998,1720770674700,-500.0,0.00014082,2]
[331818999,1720770674709,-500.0,0.00014082,2]
[331819000,1720770674719,-500.0,0.00014082,2]
[331819001,1720770674728,-500.0,0.00014082,2]
[331819002,1720770674739,-500.0,0.00014082,2]
[331819003,1720770674748,-500.0,0.00014082,2]
[331819004,1720770674758,-809.25,0.00014082,2]
[331819005,1720770674768,-500.0,0.00014082,2]
[331819006,1720770674777,-500.0,0.00014082,2]
[331819007,1720770674787,-520.79914199,0.00014082,2]
[331819008,1720770674796,-198.47,0.00014082,2]
[331819009,1720770674806,-500.0,0.00014082,2]
[331819010,1720770674815,-500.0,0.00014082,2]
[331819011,1720770674825,-717.13,0.00014082,2]
[331819012,1720770674837,-500.0,0.00014082,2]
[331819013,1720770674846,-500.0,0.00014082,2]
[331819014,1720770674856,-500.0,0.00014082,2]
[331819015,1720770674865,-500.0,0.00014082,2]
[331819016,1720770674875,-685.24,0.00014082,2]
[331819017,1720770674884,-546.44,0.00014082,2]
[331819018,1720770674893,-500.0,0.00014082,2]
[331819019,1720770674902,-500.0,0.00014082,2]
[331819020,1720770674912,-165.88,0.00014082,2]
[331819021,1720770674921,-500.0,0.00014082,2]
[331819022,1720770674930,-500.0,0.00014082,2]
[331819023,1720770674940,-1262.99,0.00014082,2]
[331819024,1720770674950,-502.52,0.00014082,2]
[331819025,1720770674959,-530.43,0.00014082,2]
[331819026,1720770674969,-463.8,0.00014082,2]
[331819027,1720770674979,-1950.33,0.00014082,2]
[331819028,1720770674988,-691.94,0.00014082,2]
[331819029,1720770674998,-952.38,0.00014082,2]
[331819030,1720770675009,-500.0,0.00014082,2]
[331819031,1720770675019,-559.66,0.00014082,2]
[331819032,1720770675029,-500.0,0.00014082,2]
[331819033,1720770675039,-500.0,0.00014082,2]
[331819034,1720770675048,-311.56,0.00014082,2]
[331819035,1720770675058,-521.14,0.00014082,2]
[331819036,1720770675068,-151.0,0.00014082,2]
[331819037,1720770675078,-500.0,0.00014082,2]
[331819038,1720770675087,-500.0,0.00014082,2]
[331819039,1720770675096,-500.0,0.00014082,2]
[331819040,1720770675106,-500.0,0.00014082,2]
[331819041,1720770675115,-500.0,0.00014082,2]
[331819042,1720770675125,-500.0,0.00014082,2]
[331819043,1720770675135,-537.93,0.00014082,2]
[331819044,1720770675145,-500.0,0.00014082,2]
[331819045,1720770675154,-500.0,0.00014082,2]
[331819046,1720770675164,-531.17,0.00014082,2]
[331819047,1720770675173,-530.08,0.00014082,2]
[331819048,1720770675183,-150.0,0.00014082,2]
[331819049,1720770675192,-363.777,0.00014099,2]
[331819050,1720770675202,-1846.945,0.00014099,2]
[331819051,1720770675211,-1107.723,0.00014099,2]
[331819052,1720770675221,-467.741,0.00014099,2]
[331819053,1720770675230,-150.439,0.00014099,2]
[331819054,1720770675239,-450.077,0.00014099,2]
[331819055,1720770675249,-166.995,0.00014099,2]
[331819056,1720770675259,-809.0,0.00014099,2]
[331819057,1720770675268,-2376.0,0.00014099,2]
[331819058,1720770675278,-1304.0,0.00014099,2]
[331819059,1720770675287,-3249.0,0.00014099,2]
[331819060,1720770675296,-1964.0,0.00014099,2]
[331819061,1720770675305,-549.0,0.00014099,2]
[331819062,1720770675315,-5814.0,0.00014099,2]
[331819063,1720770675325,-1527.059,0.00014099,2]
[331819064,1720770675334,-638.804,0.00014099,2]
[331819065,1720770675344,-13701.363,0.00014099,2]
[331819066,1720770675354,-248.809,0.00014099,2]
[331819067,1720770675363,-4343.934,0.00014099,2]
[331819068,1720770675372,-1072.0,0.00014099,2]
[331819069,1720770675381,-150.0,0.00014099,2]
[331819070,1720770675391,-200.0,0.00014099,2]
[331819071,1720770675401,-150.0,0.00014132,2]
[331819072,1720770675410,-1200.0,0.00014132,2]
[331819073,1720770675419,-337.02,0.00014135,2]
[331819074,1720770675428,-500.0,0.00014136,2]
[331819075,1720770675437,-500.0,0.00014136,2]
[331819076,1720770675446,-500.0,0.00014136,2]
[331819077,1720770675455,-233.62976485,0.00014136,2]
[331819078,1720770675464,-572.14,0.00014136,2]
[331819079,1720770675473,-500.0,0.00014136,2]
[331819080,1720770675482,-500.0,0.00014136,2]
[331819081,1720770675492,-500.0,0.00014136,2]
[331819082,1720770675501,-641.97,0.00014136,2]
[331819083,1720770675511,-500.0,0.00014136,2]
[331819084,1720770675520,-500.0,0.00014136,2]
[331819085,1720770675532,-500.0,0.00014136,2]
[331819086,1720770675543,-158.3,0.00014136,2]
[331819087,1720770675552,-500.0,0.00014136,2]
[331819088,1720770675562,-680.79,0.00014136,2]
[331819089,1720770675572,-500.0,0.00014136,2]
[331819090,1720770675581,-500.0,0.00014136,2]
[331819091,1720770675592,-500.0,0.00014136,2]
[331819092,1720770675606,-405.26,0.00014136,2]
[331819093,1720770675618,-500.0,0.00014136,2]
[331819094,1720770675628,-500.0,0.00014136,2]
[331819095,1720770675639,-159.25,0.00014136,2]
[331819096,1720770675650,-725.57,0.00014136,2]
[331819097,1720770675660,-705.63,0.00014136,2]
[331819098,1720770675669,-204.46809376,0.00014136,2]
[331819099,1720770676219,-1355.7292,0.00013598,2]
[331819100,1720770676229,-176.49176033,0.00013653,2]
[331819101,1720770676238,-505.46,0.00013698,2]
[331819102,1720770676248,-500.0,0.00013698,2]
[331819103,1720770676258,-500.0,0.00013698,2]
[331819104,1720770676267,-520.89,0.00013698,2]
[331819105,1720770676277,-500.0,0.00013753,2]
[331819106,1720770676286,-500.0,0.00013808,2]
[331819107,1720770676297,-500.0,0.00013863,2]
[331819108,1720770676309,-142.91131051,0.00014136,2]
[331819109,1720770676324,-152.62059573,0.00014136,2]
[331819110,1720770676335,-552.82,0.00014136,2]
[331819111,1720770676344,-151.72356225,0.00014136,2]
[331819112,1720770676357,-348.27643775,0.00014136,2]
[331819113,1720770676366,-500.0,0.00014136,2]
[331819114,1720770676375,-500.0,0.00014136,2]
[331819115,1720770676384,-500.0,0.00014136,2]
[331819116,1720770676393,-500.0,0.00014136,2]
[331819117,1720770676404,-500.0,0.00014136,2]
[331819118,1720770676414,-84.48161906,0.00014136,2]
[331819119,1720770676476,-500.68838094,0.00014136,2]
[331819120,1720770676486,-500.0,0.00014136,2]
[331819121,1720770676496,-500.0,0.00014136,2]
[331819122,1720770676506,-500.0,0.00014136,2]
[331819123,1720770676516,-234.3,0.00014136,2]
[331819124,1720770676526,-500.0,0.00014136,2]
[331819125,1720770676538,-556.86,0.00014136,2]
[331819126,1720770676547,-500.0,0.00014136,2]
[331819127,1720770676558,-500.0,0.00014136,2]
[331819128,1720770676567,-500.0,0.00014136,2]
[331819129,1720770676577,-500.0,0.00014136,2]
[331819130,1720770676586,-500.0,0.00014136,2]
[331819131,1720770676595,-865.7,0.00014136,2]
[331819132,1720770676609,-500.0,0.00014136,2]
[331819133,1720770676618,-500.0,0.00014136,2]
[331819134,1720770676627,-288.28,0.00014136,2]
[331819135,1720770676637,-500.0,0.00014136,2]
[331819136,1720770676648,-500.0,0.00014136,2]
[331819137,1720770676660,-665.27,0.00014136,2]
[331819138,1720770676670,-500.0,0.00014136,2]
[331819139,1720770676680,-455.49846943,0.00014136,2]
[331819140,1720770676690,-539.93,0.00014136,2]
[331819141,1720770676699,-529.8179085,0.00014136,2]
[331819142,1720770676708,-500.0,0.00014136,2]
[331819143,1720770676718,-500.0,0.00014136,2]
[331819144,1720770676727,-659.81,0.00014136,2]
[331819145,1720770676738,-500.0,0.00014136,2]
[331819146,1720770676748,-500.0,0.00014136,2]
[331819147,1720770676758,-1805.19,0.00014136,2]
[331819148,1720770676768,-500.0,0.00014136,2]
[331819149,1720770676777,-384.56,0.00014136,2]
[331819150,1720770676787,-500.0,0.00014136,2]
[331819151,1720770676796,-500.0,0.00014136,2]
[331819152,1720770676805,-500.0,0.00014136,2]
[331819153,1720770676817,-500.0,0.00014136,2]
[331819154,1720770676827,-500.0,0.00014136,2]
[331819155,1720770676839,-511.46,0.00014136,2]
[331819156,1720770676849,-500.0,0.00014136,2]
[331819157,1720770676859,-500.0,0.00014136,2]
[331819158,1720770676870,-500.0,0.00014136,2]
[331819159,1720770676880,-500.0,0.00014136,2]
[331819160,1720770676889,-500.0,0.00014136,2]
[331819161,1720770676899,-500.0,0.00014136,2]
[331819162,1720770676910,-455.54,0.00014136,2]
[331819163,1720770676920,-185.45343408,0.00014136,2]
[331819164,1720770676936,-623.79656592,0.00014136,2]
[331819165,1720770676946,-500.0,0.00014136,2]
[331819166,1720770676955,-500.0,0.00014136,2]
[331819167,1720770676965,-500.0,0.00014136,2]
[331819168,1720770676974,-500.0,0.00014136,2]
[331819169,1720770676984,-717.13,0.00014136,2]
[331819170,1720770676995,-500.0,0.00014136,2]
[331819171,1720770677007,-500.0,0.00014136,2]
[331819172,1720770677016,-500.0,0.00014136,2]
[331819173,1720770677026,-500.0,0.00014136,2]
[331819174,1720770677035,-685.24,0.00014136,2]
[331819175,1720770677045,-546.44,0.00014136,2]
[331819176,1720770677055,-500.0,0.00014136,2]
[331819177,1720770677065,-202.3496152,0.00014136,2]
[331819178,1720770677075,-500.0,0.00014136,2]
[331819179,1720770677084,-500.0,0.00014136,2]
[331819180,1720770677095,-1262.99,0.00014136,2]
[331819181,1720770677104,-502.52,0.00014136,2]
[331819182,1720770677114,-530.43,0.00014136,2]
[331819183,1720770677124,-1950.33,0.00014136,2]
[331819184,1720770677133,-691.94,0.00014136,2]
[331819185,1720770677143,-952.38,0.00014136,2]
[331819186,1720770677155,-500.0,0.00014136,2]
[331819187,1720770677164,-500.0,0.00014136,2]
[331819188,1720770677174,-500.0,0.00014136,2]
[331819189,1720770677183,-500.0,0.00014136,2]
[331819190,1720770677193,-594.82,0.00014136,2]
[331819191,1720770677203,-573.25008287,0.00014136,2]
[331819192,1720770677213,-500.0,0.00014136,2]
[331819193,1720770677223,-500.0,0.00014136,2]
[331819194,1720770677233,-500.0,0.00014136,2]
[331819195,1720770677243,-537.93,0.00014136,2]
[331819196,1720770677253,-500.0,0.00014136,2]
[331819197,1720770677266,-500.0,0.00014136,2]
[331819198,1720770677275,-531.17,0.00014136,2]
[331819199,1720770677285,-530.08,0.00014136,2]
[331819200,1720770677295,-150.0,0.00014137,2]
[331819201,1720770677304,-150.0,0.00014137,2]
[331819202,1720770677314,-115832.57700405,0.00014177,2]
[331819203,1720770677323,-151.0,0.00014177,2]
[331819204,1720770677334,-151.0,0.00014177,2]
[331819205,1720770677343,-151.0,0.00014177,2]
[331819206,1720770677353,-500.0,0.0001419,2]
[331819207,1720770677363,-500.0,0.00014191,2]
[331819208,1720770677372,-500.0,0.00014191,2]
[331819209,1720770677382,-500.0,0.00014191,2]
[331819210,1720770677392,-500.0,0.00014191,2]
[331819211,1720770677402,-400.59037958,0.00014191,2]
[331819212,1720770677412,-641.97,0.00014191,2]
[331819213,1720770677422,-500.0,0.00014191,2]
[331819214,1720770677431,-280.99,0.00014191,2]
[331819215,1720770677441,-500.0,0.00014191,2]
[331819216,1720770677451,-500.0,0.00014191,2]
[331819217,1720770677461,-680.79,0.00014191,2]
[331819218,1720770677473,-500.0,0.00014191,2]
[331819219,1720770677483,-500.0,0.00014191,2]
[331819220,1720770677494,-592.64051128,0.00014191,2]
[331819221,1720770677507,-500.0,0.00014191,2]
[331819222,1720770677517,-500.0,0.00014191,2]
[331819223,1720770677526,-159.25,0.00014191,2]
[331819224,1720770677536,-725.57,0.00014191,2]
[331819225,1720770677547,-705.63,0.00014191,2]
[331819226,1720770677558,-500.0,0.00014191,2]
[331819227,1720770677567,-500.0,0.00014191,2]
[331819228,1720770677577,-552.82,0.00014191,2]
[331819229,1720770677587,-500.0,0.00014191,2]
[331819230,1720770677597,-500.0,0.00014191,2]
[331819231,1720770677610,-500.0,0.00014191,2]
[331819232,1720770677622,-500.0,0.00014191,2]
[331819233,1720770677632,-500.0,0.00014191,2]
[331819234,1720770677643,-585.17,0.00014191,2]
[331819235,1720770677653,-500.0,0.00014191,2]
[331819236,1720770677663,-500.0,0.00014191,2]
[331819237,1720770677673,-498.92,0.00014191,2]
[331819238,1720770677683,-500.0,0.00014191,2]
[331819239,1720770677692,-556.86,0.00014191,2]
[331819240,1720770677701,-500.0,0.00014191,2]
[331819241,1720770677712,-500.0,0.00014191,2]
[331819242,1720770677721,-500.0,0.00014191,2]
[331819243,1720770677730,-500.0,0.00014191,2]
[331819244,1720770677740,-638.7,0.00014191,2]
[331819245,1720770677750,-865.7,0.00014191,2]
[331819246,1720770677760,-574.46,0.00014191,2]
[331819247,1720770677770,-447.71330676,0.00014191,2]
[331819248,1720770677780,-448.56603803,0.00014191,2]
[331819249,1720770677790,-500.0,0.00014191,2]
[331819250,1720770677800,-665.27,0.00014191,2]
[331819251,1720770677811,-329.24,0.00014191,2]
[331819252,1720770677822,-539.93,0.00014191,2]
[331819253,1720770677832,-500.0,0.00014191,2]
[331819254,1720770677843,-500.0,0.00014191,2]
[331819255,1720770677853,-659.81,0.00014191,2]
[331819256,1720770677863,-500.0,0.00014191,2]
[331819257,1720770677873,-500.0,0.00014191,2]
[331819258,1720770677883,-1805.19,0.00014191,2]
[331819259,1720770677893,-500.0,0.00014191,2]
[331819260,1720770677902,-500.0,0.00014191,2]
[331819261,1720770677912,-500.0,0.00014191,2]
[331819262,1720770677925,-500.0,0.00014191,2]
[331819263,1720770677937,-500.0,0.00014191,2]
[331819264,1720770677947,-511.46,0.00014191,2]
[331819265,1720770677957,-500.0,0.00014191,2]
[331819266,1720770677968,-500.0,0.00014191,2]
[331819267,1720770677978,-500.0,0.00014191,2]
[331819268,1720770677988,-320.67949631,0.00014191,2]
[331819269,1720770678007,-179.32050369,0.00014191,2]
[331819270,1720770678019,-500.0,0.00014191,2]
[331819271,1720770678028,-446.81,0.00014191,2]
[331819272,1720770678038,-809.25,0.00014191,2]
[331819273,1720770678048,-500.0,0.00014191,2]
[331819274,1720770678058,-500.0,0.00014191,2]
[331819275,1720770678069,-500.0,0.00014191,2]
[331819276,1720770678078,-500.0,0.00014191,2]
[331819277,1720770678088,-717.13,0.00014191,2]
[331819278,1720770678098,-500.0,0.00014191,2]
[331819279,1720770678108,-407.78034788,0.00014191,2]
[331819280,1720770678117,-500.0,0.00014191,2]
[331819281,1720770678127,-500.0,0.00014191,2]
[331819282,1720770678137,-685.24,0.00014191,2]
[331819283,1720770678147,-546.44,0.00014191,2]
[331819284,1720770678157,-500.0,0.00014191,2]
[331819285,1720770678167,-500.0,0.00014191,2]
[331819286,1720770678177,-500.0,0.00014191,2]
[331819287,1720770678187,-1262.99,0.00014191,2]
[331819288,1720770678196,-502.52,0.00014191,2]
[331819289,1720770678206,-530.43,0.00014191,2]
[331819290,1720770678216,-1950.33,0.00014191,2]
[331819291,1720770678226,-691.94,0.00014191,2]
[331819292,1720770678236,-952.38,0.00014191,2]
[331819293,1720770678246,-557.36854779,0.00014191,2]
[331819294,1720770678257,-500.0,0.00014191,2]
[331819295,1720770678268,-500.0,0.00014191,2]
[331819296,1720770678278,-500.0,0.00014191,2]
[331819297,1720770678453,-500.0,0.00014191,2]
[331819298,1720770678463,-203.06,0.00014191,2]
[331819299,1720770678473,-500.0,0.00014191,2]
[331819300,1720770678483,-537.93,0.00014191,2]
[331819301,1720770678492,-494.49007278,0.00014191,2]
[331819302,1720770678502,-500.0,0.00014191,2]
[331819303,1720770678513,-531.17,0.00014191,2]
[331819304,1720770678522,-530.08,0.00014191,2]
[331819305,1720770678531,-424.85,0.00014192,2]
[331819306,1720770678540,-355.25,0.00014192,2]
[331819307,1720770678550,-150.0,0.00014192,2]
[331819308,1720770678560,-300.0,0.00014192,2]
[331819309,1720770678569,-424.85,0.00014192,2]
[331819310,1720770678579,-355.25,0.00014192,2]
[331819311,1720770678588,-150.0,0.00014192,2]
[331819312,1720770678597,-424.85,0.00014192,2]
[331819313,1720770678609,-355.25,0.00014192,2]
[331819314,1720770678618,-150.0,0.00014192,2]
[331819315,1720770678627,-424.85,0.00014192,2]
[331819316,1720770678636,-277.19,0.00014192,2]
[331819317,1720770678646,-150.0,0.00014192,2]
[331819318,1720770678656,-484.03,0.00014192,2]
[331819319,1720770678665,-255.0,0.000142,2]
[331819320,1720770678674,-729.09271893,0.00014238,2]
[331819321,1720770678687,-500.0,0.00014245,2]
[331819322,1720770678696,-500.0,0.00014246,2]
[331819323,1720770678706,-500.0,0.00014246,2]
[331819324,1720770678715,-500.0,0.00014246,2]
[331819325,1720770678725,-500.0,0.00014246,2]
[331819326,1720770678734,-641.97,0.00014246,2]
[331819327,1720770678744,-500.0,0.00014246,2]
[331819328,1720770678753,-500.0,0.00014246,2]
[331819329,1720770678765,-500.0,0.00014246,2]
[331819330,1720770678774,-680.79,0.00014246,2]
[331819331,1720770678783,-500.0,0.00014246,2]
[331819332,1720770678793,-500.0,0.00014246,2]
[331819333,1720770678802,-500.0,0.00014246,2]
[331819334,1720770678812,-466.07489099,0.00014246,2]
[331819335,1720770678821,-159.25,0.00014246,2]
[331819336,1720770678831,-725.57,0.00014246,2]
[331819337,1720770678840,-705.63,0.00014246,2]
[331819338,1720770678849,-500.0,0.00014246,2]
[331819339,1720770678858,-500.0,0.00014246,2]
[331819340,1720770678867,-552.82,0.00014246,2]
[331819341,1720770678877,-500.0,0.00014246,2]
[331819342,1720770678887,-500.0,0.00014246,2]
[331819343,1720770678896,-500.0,0.00014246,2]
[331819344,1720770678905,-272.27387528,0.00014246,2]
[331819345,1720770678915,-500.0,0.00014246,2]
[331819346,1720770678924,-585.17,0.00014246,2]
[331819347,1720770678933,-500.0,0.00014246,2]
[331819348,1720770678942,-262.86,0.00014246,2]
[331819349,1720770678952,-500.0,0.00014246,2]
[331819350,1720770678961,-556.86,0.00014246,2]
[331819351,1720770678970,-500.0,0.00014246,2]
[331819352,1720770678980,-500.0,0.00014246,2]
[331819353,1720770678989,-500.0,0.00014246,2]
[331819354,1720770678998,-500.0,0.00014246,2]
[331819355,1720770679009,-865.7,0.00014246,2]
[331819356,1720770679018,-500.0,0.00014246,2]
[331819357,1720770679028,-665.27,0.00014246,2]
[331819358,1720770679038,-539.93,0.00014246,2]
[331819359,1720770679048,-500.0,0.00014246,2]
[331819360,1720770679057,-500.0,0.00014246,2]
[331819361,1720770679067,-659.81,0.00014246,2]
[331819362,1720770679076,-500.0,0.00014246,2]
[331819363,1720770679086,-500.0,0.00014246,2]
[331819364,1720770679095,-1805.19,0.00014246,2]
[331819365,1720770679105,-500.0,0.00014246,2]
[331819366,1720770679114,-500.0,0.00014246,2]
[331819367,1720770679123,-500.0,0.00014246,2]
[331819368,1720770679132,-500.0,0.00014246,2]
[331819369,1720770679141,-500.0,0.00014246,2]
[331819370,1720770679150,-511.46,0.00014246,2]
[331819371,1720770679160,-500.0,0.00014246,2]
[331819372,1720770679170,-500.0,0.00014246,2]
[331819373,1720770679179,-500.0,0.00014246,2]
[331819374,1720770679188,-500.0,0.00014246,2]
[331819375,1720770679198,-500.0,0.00014246,2]
[331819376,1720770679207,-809.25,0.00014246,2]
[331819377,1720770679217,-500.0,0.00014246,2]